bitfinex-derivatives/quotes_ETHF0:USTF0_20251007
["timestamp","ask_amount","ask_price","bid_price","bid_amount"]
[1759832776317,0.8541,4690.5,4690.4,6.13803968]
[1759832777218,0.7225,4690.5,4690.4,6.35103968]
[1759832777716,0.3214,4690.7,4690.6,0.38347]
[1759832777917,0.0213,4690.7,4690.6,1.09997]
[1759832778214,1.27645,4690.9,4690.8,1.09996]
[1759832778414,1.27645,4690.9,4690.8,1.31296]
[1759832778611,0.7225,4690.9,4690.8,1.31296]
[1759832780316,1.10595,4690.9,4690.8,6.35100968]
[1759832781615,0.7225,4690.9,4690.8,6.35100968]
[1759832782314,1.10595,4690.9,4690.8,6.35100968]
[1759832783616,0.7225,4690.9,4690.8,6.35100968]
[1759832783818,0.1918,4691.1,4691.0,1.22274]
[1759832784119,0.1918,4691.1,4691.0,1.43574]
[1759832784315,3.7218,4691.2,4691.1,1.09993]
[1759832784520,4.19167131,4691.2,4691.1,1.09993]
[1759832784815,4.78359131,4691.2,4691.1,1.09993]
[1759832786115,4.78359131,4691.2,4691.1,0.2]
[1759832786321,1.10593,4691.1,4691.0,0.213]
[1759832786622,1.57580131,4691.1,4691.0,0.213]
[1759832786821,1.57580131,4691.1,4691.0,0.59644]
[1759832787016,1.57580131,4691.1,4691.0,0.79644]
[1759832788119,0.3001,4690.0,4689.9,0.38353]
[1759832788419,0.7225,4689.8,4689.7,0.38355]
[1759832788615,0.7225,4689.8,4689.7,0.59655]
[1759832788821,0.7225,4689.8,4689.7,0.79655]
[1759832790123,0.7225,4689.8,4689.7,0.213]
[1759832790419,1.19236602,4689.8,4689.7,0.213]
[1759832792124,4.02587579,4689.8,4689.7,0.213]
[1759832792627,0.7225,4689.3,4689.2,0.38358]
[1759832792826,0.7225,4689.3,4689.2,0.59658]
[1759832793722,1.10608,4689.3,4689.2,0.413]
[1759832794028,1.10608,4689.3,4689.2,0.213]
[1759832794228,3.2078,4689.5,4689.4,0.4239]
[1759832794528,3.7265,4689.5,4689.4,0.7261]
[1759832794930,4.0578,4689.5,4689.3,0.38358]
[1759832795133,4.0578,4689.5,4689.4,0.2206]
[1759832795323,4.0578,4689.5,4689.4,0.5228]
[1759832795722,4.0578,4689.5,4689.4,0.5676435]
[1759832796223,4.0578,4689.5,4689.4,0.7709435]
[1759832796730,3.9326,4689.5,4689.4,0.7709435]
[1759832798125,3.9326,4689.5,4689.4,5.80899318]
[1759832798324,4.0601,4689.5,4689.4,5.80899318]
[1759832798733,3.9326,4689.5,4689.4,5.80899318]
[1759832800133,3.9326,4689.5,4689.4,6.02199318]
[1759832802626,4.0601,4689.5,4689.4,6.02199318]
[1759832803134,4.44366,4689.5,4689.4,6.40556318]
[1759832803332,4.44366,4689.5,4689.4,1.3675135]
[1759832805834,4.44366,4689.5,4689.4,1.0653135]
[1759832806135,4.44366,4689.5,4689.4,1.3891135]
[1759832807037,4.44366,4689.5,4689.4,0.8620135]
[1759832807433,4.44366,4689.5,4689.4,0.2578435]
[1759832811834,4.44366,4689.5,4689.4,0.8555135]
[1759832813037,4.44366,4689.5,4689.4,0.4719435]
[1759832813435,4.44366,4689.5,4689.4,0.7957435]
[1759832813642,4.44366,4689.5,4689.4,0.2578435]
[1759832816142,4.44366,4689.5,4689.4,1.05024912]
[1759832816542,4.44366,4689.5,4689.4,1.26434912]
[1759832816740,4.44366,4689.5,4689.4,0.88077912]
[1759832818143,4.0601,4689.5,4689.4,1.26434912]
[1759832818745,4.44366,4689.5,4689.4,1.26434912]
[1759832818947,4.44366,4689.5,4689.4,1.26811827]
[1759832819345,4.44366,4689.5,4689.4,1.05401827]
[1759832820046,4.44366,4689.5,4689.4,0.67044827]
[1759832820241,4.91311909,4689.5,4689.4,0.67044827]
[1759832820639,4.91311909,4689.5,4689.4,1.05401827]
[1759832820946,4.91311909,4689.5,4689.4,1.26811827]
[1759832823049,4.91311909,4689.5,4689.4,0.67044827]
[1759832824450,4.91311909,4689.5,4689.4,1.26811827]
[1759832825450,4.91311909,4689.5,4689.4,1.58041827]
[1759832825647,0.1918,4689.7,4689.6,1.12065]
[1759832825839,0.7369,4689.7,4689.6,1.12065]
[1759832826044,0.7369,4689.7,4689.6,1.57809827]
[1759832826045,0.5451,4689.7,4689.6,1.57809827]
[1759832826244,0.5451,4689.7,4689.6,42.37809827]
[1759832826647,0.7541,4690.4,4690.3,0.58969]
[1759832826844,1.22331156,4690.4,4690.3,1.11499]
[1759832827150,1.22331156,4690.4,4690.3,1.18894827]
[1759832827349,1.22331156,4690.4,4690.3,0.87664827]
[1759832827851,1.22331156,4690.4,4690.3,0.67044827]
[1759832829054,0.7541,4690.4,4690.3,1.18894827]
[1759832830055,0.7541,4690.4,4690.3,1.40754827]
[1759832830247,0.5451,4690.4,4690.3,1.40754827]
[1759832830747,3.2078,4690.5,4690.4,1.12059]
[1759832830947,0.1918,4690.6,4690.4,1.12059]
[1759832831155,0.1918,4690.6,4690.5,1.53154827]
[1759832831548,0.0213,4690.6,4690.5,1.53154827]
[1759832832149,0.5664,4690.6,4690.5,1.53154827]
[1759832832652,0.5451,4690.6,4690.5,1.53154827]
[1759832833854,0.5451,4690.6,4690.5,6.56959795]
[1759832834051,3.9619,4691.0,4690.9,0.58965]
[1759832834250,3.9619,4691.0,4690.9,1.33355]
[1759832834648,3.7529,4691.0,4690.9,1.33355]
[1759832834852,3.2078,4691.0,4690.9,6.37159968]
[1759832835048,0.5451,4691.3,4691.2,1.12052]
[1759832835254,0.5451,4691.3,4691.2,1.79096827]
[1759832835553,0.7541,4691.3,4691.2,1.79096827]
[1759832835747,3.2078,4691.5,4691.4,1.12051]
[1759832835954,0.7541,4691.5,4691.4,1.33351]
[1759832836147,0.7541,4691.5,4691.4,1.79095827]
[1759832836957,0.5451,4691.5,4691.4,1.79095827]
[1759832839059,0.8753,4691.5,4691.4,1.79095827]
[1759832840255,0.7541,4691.5,4691.4,1.79095827]
[1759832840657,0.5451,4691.5,4691.4,1.79095827]
[1759832840859,0.1918,4691.7,4691.6,1.12049]
[1759832841058,0.5214,4691.7,4691.6,1.33349]
[1759832841258,0.5001,4691.7,4691.6,1.79093827]
[1759832842056,0.1705,4691.7,4691.6,6.79093827]
[1759832842655,0.1705,4691.7,4691.6,47.59093827]
[1759832842861,0.0021519,4691.9,4691.8,1.12047]
[1759832843056,0.0021519,4691.9,4691.8,1.33347]
[1759832843451,0.0021519,4691.9,4691.8,1.79091827]
[1759832843657,0.0021519,4691.9,4691.8,42.59091827]
[1759832847059,0.3317519,4691.9,4691.8,42.59091827]
[1759832850558,1.1396219,4691.9,4691.8,1.47861827]
[1759832850755,1.1396219,4691.9,4691.8,0.67044827]
[1759832850959,6.1396219,4691.9,4691.8,0.67044827]
[1759832852765,8.97304248,4691.9,4691.8,0.45744827]
[1759832853165,9.44001744,4691.9,4691.8,0.45744827]
[1759832853865,9.44001744,4691.9,4691.8,0.17959423]
[1759832854063,0.59242,4691.2,4691.1,0.213]
[1759832854268,0.59242,4691.2,4690.6,33.45687577]
[1759832854269,0.5208,4690.7,4690.6,33.45687577]
[1759832854461,0.5208,4690.7,4690.6,33.66987577]
[1759832854767,0.7328,4690.7,4690.6,0.80097]
[1759832855266,0.7328,4690.7,4690.6,1.13197]
[1759832856167,0.7328,4690.7,4690.6,1.33607]
[1759832856362,0.7328,4690.7,4690.6,0.4175]
[1759832857264,0.7328,4690.7,4690.6,0.9526]
[1759832861265,0.5208,4690.7,4690.6,0.9526]
[1759832861767,0.7389,4690.7,4690.6,0.9526]
[1759832861974,1.12236,4690.7,4690.6,1.33607]
[1759832863572,0.7389,4690.7,4690.6,1.33607]
[1759832863770,0.5208,4690.7,4690.6,1.33607]
[1759832868589,0.7389,4690.7,4690.6,1.33607]
[1759832879588,0.7389,4690.7,4690.6,0.9526]
[1759832879792,0.7389,4690.7,4690.6,1.33607]
[1759832880297,1.20765354,4690.7,4690.6,1.33607]
[1759832881603,0.46875354,4690.7,4690.6,9.58191968]
[1759832881900,0.1918,4690.9,4690.6,9.58191968]
[1759832881901,0.7194,4690.9,4690.8,1.09206]
[1759832882303,0.5276,4690.9,4690.8,1.09206]
[1759832882801,0.99659037,4690.9,4690.8,1.09206]
[1759832884095,1.21469037,4690.9,4690.8,1.09206]
[1759832884498,0.89119037,4690.9,4690.3,5.03804968]
[1759832884694,0.2146,4690.0,4689.8,0.3195]
[1759832884900,0.8832,4690.0,4689.9,0.213]
[1759832885199,1.35234546,4690.0,4689.9,0.213]
[1759832886195,1.35234546,4690.0,4689.9,0.4147]
[1759832886503,1.35234546,4690.0,4689.9,0.9485]
[1759832887001,1.22554546,4690.0,4689.9,0.9485]
[1759832887201,0.7564,4690.0,4689.9,0.9485]
[1759832888104,0.8832,4690.0,4689.9,0.9485]
[1759832892401,0.8832,4690.0,4689.6,5.03804968]
[1759832892402,1.14003,4688.7,4688.6,0.00176523]
[1759832892598,4.81610372,4688.7,4688.6,0.00176523]
[1759832892798,7.0030194,4688.7,4688.6,0.73726523]
[1759832893002,3.2078,4688.7,4688.6,0.95026523]
[1759832895301,0.1706,4688.9,4688.8,0.7355]
[1759832897811,0.3229,4689.2,4688.8,0.7355]
[1759832897812,0.3229,4689.2,4689.1,0.3836]
[1759832898112,0.5375,4689.2,4689.1,1.3321]
[1759832900111,0.7564,4689.8,4689.7,1.11905]
[1759832900410,0.7564,4689.8,4689.7,1.33205]
[1759832903009,3.76182,4690.0,4689.9,0.38353]
[1759832903208,3.98072,4690.0,4689.9,1.11903]
[1759832903408,4.19532,4690.0,4689.9,1.11903]
[1759832903813,4.64502,4690.0,4689.9,1.11903]
[1759832904014,4.2615,4690.0,4689.9,1.11903]
[1759832904617,0.7564,4689.8,4689.7,0.213]
[1759832904914,0.38353,4689.9,4688.9,4.16683]
[1759832904915,0.7564,4689.3,4689.2,0.58529]
[1759832905111,0.7564,4689.3,4689.2,1.33209]
[1759832905614,0.1268,4689.5,4689.4,0.79957]
[1759832905615,0.5375,4689.5,4689.4,0.79957]
[1759832905815,0.5375,4689.5,4689.4,1.11907]
[1759832906412,0.5375,4689.5,4689.2,0.213]
[1759832906413,4.25562,4690.0,4689.9,1.11903]
[1759832906714,4.47452,4690.0,4689.9,1.33203]
[1759832909014,4.47452,4690.0,4689.9,0.9485]
[1759832909215,4.47452,4690.0,4689.9,0.213]
[1759832910509,1.14,4689.1,4689.0,0.2017]
[1759832910717,1.14,4689.1,4689.0,0.4147]
[1759832911518,0.7564,4689.1,4689.0,0.4147]
[1759832912219,0.7564,4689.1,4689.0,0.7342]
[1759832912715,0.7564,4689.1,4689.0,0.9485]
[1759832915021,0.7564,4689.1,4689.0,1.3321]
[1759832915319,1.14,4689.1,4689.0,1.3321]
[1759832916616,0.7564,4689.1,4689.0,1.3321]
[1759832917727,0.0213,4689.3,4689.2,1.14769]
[1759832918022,3.59136,4689.5,4689.4,0.38357]
[1759832918224,4.09786,4689.5,4689.4,1.36067]
[1759832918719,4.31286,4689.5,4689.4,1.36067]
[1759832919625,4.31286,4689.5,4689.4,0.9771]
[1759832920222,4.43416,4689.5,4689.4,0.9771]
[1759832922620,0.1918,4689.7,4689.4,0.9771]
[1759832922621,0.498,4689.7,4689.6,0.38355]
[1759832922818,0.498,4689.7,4689.6,1.14765]
[1759832923124,0.6983,4689.7,4689.6,1.14765]
[1759832923621,0.5278,4689.7,4689.6,1.14765]
[1759832924213,0.5065,4689.7,4689.6,1.14765]
[1759832924419,0.5065,4689.7,4689.6,0.7641]
[1759832924619,0.5065,4689.7,4689.6,1.14765]
[1759832925827,0.89005,4689.7,4689.6,1.14765]
[1759832926126,1.10505,4689.7,4689.6,1.14765]
[1759832926322,0.7215,4689.7,4689.6,1.14765]
[1759832931022,1.10505,4689.7,4689.6,1.14765]
[1759832931328,0.7215,4689.7,4689.6,1.14765]
[1759832933230,1.10505,4689.7,4689.6,1.14765]
[1759832934830,0.7215,4689.7,4689.6,1.14765]
[1759832937233,1.10505,4689.7,4689.6,1.14765]
[1759832939533,0.7215,4689.7,4689.6,1.14765]
[1759832940537,1.10505,4689.7,4689.6,1.14765]
[1759832942638,1.10505,4689.7,4689.6,0.7641]
[1759832942833,1.10505,4689.6,4689.5,0.38356]
[1759832943634,1.10505,4689.6,4689.5,0.60216]
[1759832944041,1.10505,4689.6,4689.5,0.93056]
[1759832944541,1.10505,4689.6,4689.5,0.547]
[1759832944839,1.10505,4689.6,4689.5,0.93056]
[1759832946642,1.10505,4689.6,4689.5,5.58504968]
[1759832947142,1.10505,4689.6,4689.5,5.96860968]
[1759832947643,1.10505,4689.6,4689.5,5.64020968]
[1759832948545,1.10505,4689.6,4689.5,5.94070968]
[1759832949338,0.7215,4689.6,4689.5,6.15200968]
[1759832949739,1.10505,4689.6,4689.5,6.15200968]
[1759832951141,0.5065,4689.6,4689.5,6.15200968]
[1759832951346,0.70925,4689.8,4689.7,0.7291]
[1759832951546,0.70925,4689.8,4689.7,0.9421]
[1759832951846,0.90975,4689.8,4689.7,0.9421]
[1759832952046,0.5262,4689.8,4689.7,1.32564]
[1759832952746,0.90974,4689.8,4689.7,6.36368968]
[1759832953545,0.38354,4689.8,4689.7,6.36368968]
[1759832953846,0.90974,4689.8,4689.7,5.98014968]
[1759832954242,1.12914,4689.8,4689.7,5.98014968]
[1759832954446,1.12914,4689.8,4689.7,6.36369968]
[1759832955748,1.12914,4689.8,4689.7,5.98014968]
[1759832957249,1.60146113,4689.8,4689.7,5.98014968]
[1759832957640,1.12914,4689.8,4689.7,5.98014968]
[1759832958249,0.90974,4689.8,4689.7,6.36369968]
[1759832958752,1.12914,4689.8,4689.7,6.36369968]
[1759832959050,0.90974,4689.8,4689.7,6.36369968]
[1759832960338,0.90974,4689.8,4689.7,5.46834968]
[1759832960339,1.12914,4689.8,4689.7,5.46834968]
[1759832960537,1.60147033,4689.8,4689.7,5.46834968]
[1759832962550,1.60147033,4689.8,4689.7,5.76884968]
[1759832963151,1.60147033,4689.8,4689.7,5.98014968]
[1759832963446,1.12914,4689.8,4689.7,5.98014968]
[1759832963652,1.60145938,4689.8,4689.7,5.98014968]
[1759832963846,1.12914,4689.8,4689.7,6.36369968]
[1759832964053,1.60146279,4689.8,4689.7,6.36369968]
[1759832964953,1.60146279,4689.8,4689.7,5.98014968]
[1759832965449,1.60146279,4689.8,4689.7,6.36369968]
[1759832965952,1.60146279,4689.8,4689.7,5.98014968]
[1759832966353,1.60146279,4689.8,4689.7,0.6416]
[1759832966555,1.60146279,4689.8,4689.7,0.9421]
[1759832967448,1.60146279,4689.8,4689.7,0.6416]
[1759832967644,0.38358,4689.3,4689.2,5.03804968]
[1759832967856,1.12918,4689.3,4689.2,5.76884968]
[1759832968053,1.60150279,4689.3,4689.2,5.76884968]
[1759832968755,1.60150279,4689.3,4689.2,5.98014968]
[1759832969255,1.12918,4689.3,4689.2,5.98014968]
[1759832969554,1.60137942,4689.3,4689.2,5.98014968]
[1759832970451,1.60137942,4689.3,4689.2,0.9421]
[1759832971147,1.12918,4689.3,4689.2,0.9421]
[1759832971344,1.12918,4689.3,4689.2,1.32569]
[1759832972543,1.12918,4689.3,4689.2,0.9421]
[1759832973543,1.12918,4689.3,4689.2,1.32569]
[1759832974656,0.0213,4689.5,4689.4,1.10727]
[1759832975150,1.18011543,4689.5,4689.4,1.10727]
[1759832975354,1.39041543,4689.5,4689.4,1.10727]
[1759832977055,0.91836,4689.5,4689.4,1.10727]
[1759832977950,0.91836,4689.5,4689.4,0.7237]
[1759832978154,1.24876,4689.5,4689.4,0.7237]
[1759832978551,1.24876,4689.5,4689.4,0.2031]
[1759832979056,1.10068,4689.3,4689.2,0.4163]
[1759832979249,0.7171,4688.9,4688.8,0.4147]
[1759832979449,1.10071,4688.9,4688.8,0.6277]
[1759832979856,1.10071,4688.9,4688.8,1.32842]
[1759832980557,0.7171,4688.9,4688.8,1.32842]
[1759832980758,0.5068,4688.9,4688.8,1.32842]
[1759832981855,0.89041,4688.9,4688.8,1.32842]
[1759832982050,0.6891,4689.1,4689.0,1.11539]
[1759832982352,0.8904,4689.1,4689.0,1.11539]
[1759832983962,0.38359,4689.2,4689.1,0.79828]
[1759832984156,0.68909,4689.2,4689.1,1.32838]
[1759832984462,0.89039,4689.2,4689.1,1.32838]
[1759832984662,1.10069,4689.2,4689.1,1.32838]
[1759832984864,1.10069,4689.2,4689.1,1.3284]
[1759832986162,0.89039,4689.2,4689.1,1.3284]
[1759832987558,1.10069,4689.2,4689.1,1.3284]
[1759832990466,0.7171,4689.2,4689.1,1.3284]
[1759832991261,0.1706,4689.3,4689.2,1.11539]
[1759832991767,0.3055,4689.5,4689.4,1.11537]
[1759832991970,3.5133,4689.9,4689.6,1.11535]
[1759832992159,3.5133,4689.9,4689.6,1.32835]
[1759832992363,3.89683,4689.9,4689.8,0.38354]
[1759832992564,4.09813,4689.9,4689.8,1.11534]
[1759832993264,4.30843,4689.9,4689.8,1.11534]
[1759832994363,3.5133,4689.9,4689.8,1.11534]
[1759832994564,3.7146,4689.9,4689.8,1.11534]
[1759832995769,3.2078,4689.9,4689.8,1.11534]
[1759832996566,3.7146,4689.9,4689.8,1.11534]
[1759832996978,3.5133,4689.9,4689.8,1.11534]
[1759832997660,3.7146,4689.9,4689.8,1.11534]
[1759832999372,3.9249,4689.9,4689.8,1.11534]
[1759832999971,4.30843,4689.9,4689.8,1.11534]
[1759833000366,3.9249,4689.9,4689.8,1.11534]
[1759833001467,0.1918,4690.1,4690.0,0.38352]
[1759833001666,0.4973,4690.1,4690.0,1.32832]
[1759833001874,0.3055,4690.1,4690.0,1.32832]
[1759833002563,0.5068,4690.1,4690.0,1.32832]
[1759833003169,0.7171,4690.1,4690.0,1.32832]
[1759833004269,1.10061,4690.1,4690.0,1.32832]
[1759833004468,1.10061,4690.1,4690.0,0.59652]
[1759833006174,1.10061,4690.1,4690.0,5.63456968]
[1759833006775,1.10061,4690.1,4690.0,5.84276968]
[1759833007979,1.10061,4690.1,4690.0,6.14476968]
[1759833008179,0.7171,4690.1,4690.0,6.14476968]
[1759833008374,1.10061,4690.1,4690.0,6.14476968]
[1759833008573,1.10061,4690.1,4690.0,0.213]
[1759833008878,4.37251025,4690.1,4690.0,0.213]
[1759833014077,0.38359,4689.3,4689.2,0.38359]
[1759833014282,1.11979,4689.3,4689.2,0.80479]
[1759833014475,1.11979,4689.3,4689.2,1.10679]
[1759833016083,0.90884,4689.8,4689.7,0.2082]
[1759833016281,0.90884,4689.8,4689.7,1.32545]
[1759833016282,0.5253,4689.8,4689.7,1.32545]
[1759833016585,0.70903,4689.9,4689.8,1.11244]
[1759833016780,0.3255,4689.9,4689.8,1.11244]
[1759833016976,0.38352,4690.0,4689.9,0.81043]
[1759833017176,1.05525063,4690.0,4689.9,1.11243]
[1759833017376,1.38075063,4690.0,4689.9,0.7289]
[1759833017781,1.38075063,4690.0,4689.9,1.11243]
[1759833018276,1.38075063,4690.0,4689.9,0.7289]
[1759833018484,1.71975063,4690.0,4689.9,0.7289]
[1759833018782,1.71975063,4690.0,4689.9,0.4269]
[1759833018978,1.71975063,4690.0,4689.9,0.2082]
[1759833020983,1.71975063,4690.0,4689.9,5.24624968]
[1759833022785,1.71975063,4690.0,4689.9,5.57384968]
[1759833023989,1.59165063,4690.0,4689.9,6.16837968]
[1759833024189,0.99723063,4690.0,4689.9,6.16837968]
[1759833024485,1.38075063,4690.0,4689.9,6.16837968]
[1759833025183,3.59131,4690.2,4690.1,0.38351]
[1759833025483,4.60310443,4690.2,4690.1,1.34651]
[1759833025986,4.60310443,4690.2,4690.1,0.963]
[1759833026790,4.60310443,4690.2,4690.1,6.00104968]
[1759833027386,4.13081,4690.2,4690.1,6.00104968]
[1759833028486,4.13081,4690.2,4690.1,6.38455968]
[1759833029690,4.13081,4690.2,4690.1,6.00104968]
[1759833030585,4.33201,4690.2,4690.1,5.25104968]
[1759833030893,4.80428627,4690.2,4690.1,5.25104968]
[1759833031093,4.80428627,4690.2,4690.1,5.46204968]
[1759833031285,4.80428627,4690.2,4690.1,5.77154968]
[1759833032797,4.80428627,4690.2,4690.1,0.7335]
[1759833035094,4.80428627,4690.2,4690.1,0.213]
[1759833035398,7.55702656,4690.2,4690.1,0.213]
[1759833036199,0.81343,4689.9,4689.8,5.03804968]
[1759833036395,1.58840627,4689.9,4689.8,5.25104968]
[1759833038703,1.58840627,4689.9,4689.8,0.213]
[1759833039603,1.58840627,4689.9,4689.8,0.4139]
[1759833042102,1.58840627,4689.9,4689.8,0.9507]
[1759833043400,0.70087,4689.4,4689.3,0.2009]
[1759833043603,0.1321,4689.5,4689.1,0.2009]
[1759833043604,1.13489,4689.2,4689.1,0.2009]
[1759833043799,0.81761,4688.9,4688.8,0.5253]
[1759833044102,1.13491,4688.9,4688.8,0.7383]
[1759833044302,1.13491,4688.9,4688.8,0.9507]
[1759833045004,0.5381,4688.9,4688.8,0.9507]
[1759833045303,0.943,4689.1,4689.0,0.7377]
[1759833046503,1.1562,4689.1,4689.0,0.7377]
[1759833046805,1.13491,4688.9,4688.8,1.12192]
[1759833047109,1.13491,4688.9,4688.8,1.33432]
[1759833049309,0.5381,4688.9,4688.8,1.33432]
[1759833049507,0.4049,4689.1,4689.0,1.2481]
[1759833049508,0.0213,4689.1,4689.0,1.2481]
[1759833049813,3.2078,4689.7,4689.6,1.12125]
[1759833050012,3.2078,4689.7,4689.6,1.33425]
[1759833050210,3.5251,4689.7,4689.6,1.33425]
[1759833050410,3.7459,4689.7,4689.6,1.33425]
[1759833052014,3.9591,4689.7,4689.6,1.33425]
[1759833054118,3.2078,4689.7,4689.6,1.33425]
[1759833054312,3.7459,4689.7,4689.6,1.33425]
[1759833054614,3.9591,4689.7,4689.6,1.33425]
[1759833055208,3.5251,4689.7,4689.6,1.33425]
[1759833055606,3.7459,4689.7,4689.6,1.33425]
[1759833057916,3.9591,4689.7,4689.6,1.33425]
[1759833058118,3.9591,4689.7,4689.6,0.9507]
[1759833058318,3.9591,4689.7,4689.6,0.213]
[1759833060616,3.9591,4689.7,4689.6,0.4139]
[1759833060816,3.9591,4689.7,4689.6,0.213]
[1759833063020,0.7513,4689.3,4689.2,0.38358]
[1759833063214,0.7513,4689.3,4689.2,0.59658]
[1759833064816,1.13488,4689.3,4689.2,0.79748]
[1759833067720,0.7513,4689.3,4689.2,0.79748]
[1759833067921,0.7513,4689.3,4689.2,1.10148]
[1759833068222,0.7513,4689.3,4689.2,1.30578]
[1759833068416,0.5381,4689.3,4689.2,1.30578]
[1759833069523,0.7478,4689.3,4689.2,1.30578]
[1759833069716,1.13138,4689.3,4689.2,1.30578]
[1759833071321,1.13138,4689.3,4689.2,6.34382968]
[1759833074929,0.7478,4689.3,4689.2,6.34382968]
[1759833075623,4.33918,4689.3,4689.2,5.03804968]
[1759833075824,4.33918,4689.3,4688.6,5.03981491]
[1759833075825,1.10823,4688.7,4688.6,5.03981491]
[1759833076026,1.5813492,4688.7,4688.6,0.21576523]
[1759833076323,1.23279,4688.0,4687.9,0.02133174]
[1759833076730,1.23279,4688.0,4687.9,0.23533174]
[1759833076927,1.23279,4688.0,4687.9,0.02133174]
[1759833077227,1.23473325,4688.0,4687.9,0.23730525]
[1759833078929,1.23473325,4688.0,4687.9,0.02330525]
[1759833089145,0.85104325,4688.0,4687.9,0.73940525]
[1759833089342,0.00194325,4688.0,4687.9,5.73940525]
[1759833091046,0.00194325,4688.0,4687.9,46.53940525]
[1759833093540,0.1919,4688.2,4688.1,0.4121]
[1759833093739,0.1919,4688.2,4688.1,0.9301]
[1759833093936,3.2078,4688.7,4688.6,0.7161]
[1759833094245,3.2078,4688.7,4688.6,0.9301]
[1759833094647,3.20997025,4688.7,4688.6,0.9301]
[1759833094840,3.52677025,4688.7,4688.6,1.31374]
[1759833095046,3.74597025,4688.7,4688.6,1.31374]
[1759833095346,3.94517025,4688.7,4688.6,1.31374]
[1759833095643,3.94517025,4688.7,4688.6,0.9301]
[1759833096238,3.94517025,4688.7,4688.6,0.7161]
[1759833096442,3.94517025,4688.7,4688.6,0.9301]
[1759833096647,3.94517025,4688.7,4688.6,0.4218]
[1759833096842,3.94517025,4688.7,4688.6,0.747]
[1759833097044,3.94517025,4688.7,4688.6,0.9485]
[1759833097448,0.00217025,4688.7,4688.6,0.9485]
[1759833098042,0.00217025,4688.7,4688.6,5.9485]
[1759833102345,0.00217025,4688.7,4688.6,0.9485]
[1759833102648,0.00217025,4688.7,4688.6,0.7345]
[1759833102848,0.32397025,4688.7,4688.6,0.9485]
[1759833103944,0.00217025,4688.7,4688.6,0.9485]
[1759833105353,0.00217025,4688.7,4688.6,5.98654968]
[1759833107451,0.00217025,4688.7,4688.6,46.78654968]
[1759833108053,0.00217025,4688.7,4688.6,47.17018968]
[1759833109149,0.5402,4690.0,4689.9,0.38353]
[1759833109354,0.5402,4690.0,4689.9,1.31083]
[1759833110056,0.5402,4690.4,4690.3,1.0968]
[1759833110249,0.54277452,4690.4,4690.3,1.3108]
[1759833113249,0.76037452,4690.4,4690.3,0.9273]
[1759833113556,0.81956,4689.6,4689.5,0.2056]
[1759833113750,0.7578,4689.6,4689.5,0.9273]
[1759833117055,0.2184,4690.0,4689.9,0.2083]
[1759833117258,3.2078,4690.2,4690.1,0.38351]
[1759833117557,0.54277452,4690.4,4690.3,1.0968]
[1759833117757,0.54277452,4690.4,4690.3,1.3108]
[1759833119359,0.76037452,4690.4,4690.3,1.3108]
[1759833120061,0.00257452,4690.4,4690.3,1.3108]
[1759833121467,0.76037452,4690.4,4690.3,1.3108]
[1759833122964,0.76037452,4690.4,4690.3,42.1108]
[1759833124561,1.14386452,4690.4,4690.3,0.2056]
[1759833124762,1.14386452,4690.4,4690.3,0.214]
[1759833125159,0.79721,4690.2,4690.1,0.60401]
[1759833125359,1.10501,4690.2,4690.1,1.13691]
[1759833126062,0.7215,4690.2,4690.1,1.34251]
[1759833127064,1.10501,4690.2,4690.1,1.34251]
[1759833127470,0.00257452,4690.4,4690.3,1.1285]
[1759833127664,0.00257452,4690.4,4690.3,1.3425]
[1759833129567,0.52337452,4690.4,4690.3,1.1285]
[1759833129762,0.72407452,4690.4,4690.3,1.3425]
[1759833130368,1.10756452,4690.4,4690.3,1.3425]
[1759833131671,0.00257452,4690.4,4690.3,1.3425]
[1759833134369,0.00257452,4690.4,4690.3,6.38054968]
[1759833135577,0.00257452,4690.4,4690.3,1.3425]
[1759833138574,0.0213,4691.1,4691.0,1.24884]
[1759833138869,0.3078,4691.6,4691.0,1.0794]
[1759833139169,3.59118,4691.8,4691.6,0.38339]
[1759833139368,3.7286,4691.8,4691.7,0.959]
[1759833139569,3.73080221,4691.8,4691.7,0.96075901]
[1759833140276,0.95828,4692.7,4692.4,1.12833]
[1759833140277,0.5208,4692.5,4692.4,1.12833]
[1759833140575,0.5208,4692.5,4692.4,1.34233]
[1759833140776,0.213,4692.7,4692.6,0.3833]
[1759833141070,0.5208,4692.7,4692.6,1.3423]
[1759833141268,0.52342158,4692.7,4692.6,1.3423]
[1759833141463,0.21562158,4692.7,4692.6,1.3423]
[1759833142071,0.00262158,4692.7,4692.6,1.3423]
[1759833142277,0.00262158,4692.7,4692.6,4.5501]
[1759833142974,0.00262158,4692.7,4692.6,45.3501]
[1759833143978,0.31042158,4692.7,4692.6,45.3501]
[1759833144580,0.00262158,4692.7,4692.6,45.3501]
[1759833149079,0.31042158,4692.7,4692.6,44.9668]
[1759833149276,0.72412158,4692.7,4692.6,0.4345]
[1759833150082,0.72412158,4692.7,4692.6,0.7534]
[1759833150478,0.72412158,4692.7,4692.6,0.4345]
[1759833152080,1.10742158,4692.7,4692.6,0.4345]
[1759833152480,0.72412158,4692.7,4692.6,0.4345]
[1759833152684,0.72412158,4692.7,4692.6,0.959]
[1759833154481,0.72412158,4692.7,4692.6,0.4345]
[1759833155682,0.72412158,4692.7,4692.6,0.7521]
[1759833155884,0.72412158,4692.7,4692.6,0.9627]
[1759833157185,1.10742158,4692.7,4692.6,0.9627]
[1759833157991,1.10742158,4692.7,4692.6,0.6451]
[1759833159989,1.10742158,4692.7,4692.6,1.02841]
[1759833161787,0.50792,4692.5,4692.4,40.8]
[1759833161988,0.7224,4692.3,4692.2,5.62688968]
[1759833162184,0.5198,4692.3,4692.2,6.36718968]
[1759833162390,0.5198,4692.3,4692.2,1.32914]
[1759833164284,0.72502158,4692.7,4692.6,0.78971]
[1759833164589,0.72502158,4692.7,4692.6,1.32911]